[Event "GER-ch Blitz 2019"]
[Site "Magdeburg"]
[Date "2019.05.25"]
[Round "15.15"]
[White "Schmaltz, Roland"]
[Black "Stein, Robert"]
[Result "0-1"]
[ECO "C77"]
[WhiteElo "2461"]
[BlackElo "2318"]
[Annotator "ChessBase"]
[PlyCount "86"]
[EventDate "2019.05.25"]
[EventType "tourn"]
[EventCountry "GER"]
[Tiebreak "Number of wins+Number of black wins"]
[SourceTitle "playchess.com"]
[Source "ChessBase"]
[SourceQuality "1"]
[TimeControl "180+2"]

1. e4 {[%emt 0:00:00]} e5 {[%emt 0:00:00]} 2. Nf3 {[%emt 0:00:00]} Nc6 {
[%emt 0:00:00]} 3. Bb5 {[%emt 0:00:00]} a6 {[%emt 0:00:00]} 4. Ba4 {[%emt 0:00:
00]} Nf6 5. d3 b5 {[%emt 0:00:04]} 6. Bb3 {[%emt 0:00:01]} Be7 {[%emt 0:00:03]}
7. O-O {[%emt 0:00:03]} d6 {[%emt 0:00:02]} 8. c3 {[%emt 0:00:01]} O-O {
[%emt 0:00:02]} 9. Nbd2 {[%emt 0:00:02]} Be6 {[%emt 0:00:18]} 10. Re1 {[%emt 0:
00:04]} h6 {[%emt 0:00:02]} 11. Nf1 {[%emt 0:00:05]} Qd7 {[%emt 0:00:03]} 12.
Bc2 {[%emt 0:00:07]} Rfe8 {[%emt 0:00:04]} 13. d4 {[%emt 0:00:05]} exd4 {
[%emt 0:00:22]} 14. cxd4 {[%emt 0:00:02]} Nb4 {[%emt 0:00:01]} 15. Bb1 {
[%emt 0:00:06]} c5 {[%emt 0:00:02]} 16. d5 {[%emt 0:00:03]} Nbxd5 {[%emt 0:00:
26]} 17. exd5 {[%emt 0:00:02]} Bxd5 {[%emt 0:00:01]} 18. a4 {[%emt 0:00:16]}
Qb7 {[%emt 0:00:07]} 19. Ra3 {[%emt 0:00:11]} Bf8 {[%emt 0:00:03]} 20. Rxe8 {
[%emt 0:00:05]} Rxe8 {[%emt 0:00:01]} 21. axb5 {[%emt 0:00:02]} axb5 {[%emt 0:
00:01]} 22. Bf4 {[%emt 0:00:06]} Rd8 {[%emt 0:00:13]} 23. Ne3 {[%emt 0:00:12]}
Bc6 {[%emt 0:00:07]} 24. Nf5 {[%emt 0:00:07]} d5 {[%emt 0:00:00]} 25. Ne5 {
[%emt 0:00:04]} d4 {[%emt 0:00:24]} 26. Rg3 {[%emt 0:00:05]} Kh8 {[%emt 0:00:
00]} 27. Nxc6 {[%emt 0:00:28]} Qxc6 {[%emt 0:00:02]} 28. Be5 {[%emt 0:00:04]}
Qe6 {[%emt 0:00:13]} 29. f4 {[%emt 0:00:23]} g6 {[%emt 0:00:30]} 30. Nh4 {
[%emt 0:00:22]} Bg7 {[%emt 0:00:01]} 31. Nf3 {[%emt 0:00:06]} Nh5 {[%emt 0:00:
25]} 32. f5 {[%emt 0:00:07]} Qe7 {[%emt 0:00:07]} 33. Bxg7+ {[%emt 0:00:03]}
Kxg7 {[%emt 0:00:02]} 34. Rg4 {[%emt 0:00:10]} Qe3+ {[%emt 0:00:00]} 35. Kh1 {
[%emt 0:00:04]} Nf6 {[%emt 0:00:01]} 36. Rg3 {[%emt 0:00:07]} Nh5 {[%emt 0:00:
06]} 37. Rg4 {[%emt 0:00:20]} Nf6 {[%emt 0:00:01]} 38. Rh4 {[%emt 0:00:02]} g5
{[%emt 0:00:02]} 39. Rh3 {[%emt 0:00:01]} Ng4 {[%emt 0:00:02]} 40. f6+ {
[%emt 0:00:03]} Kg8 {[%emt 0:00:04]} 41. Qc2 {[%emt 0:00:08]} Nf2+ 42. Kg1
Nxh3+ 43. Kf1 d3 {[%emt 0:00:07]} 0-1

[Event "GER-ch Blitz 2019"]
[Site "Magdeburg"]
[Date "2019.05.25"]
[Round "16.1"]
[White "Voege, Tobias"]
[Black "Gustafsson, Jan"]
[Result "0-1"]
[ECO "E21"]
[WhiteElo "2294"]
[BlackElo "2639"]
[Annotator "ChessBase"]
[PlyCount "92"]
[EventDate "2019.05.25"]
[EventType "tourn"]
[EventCountry "GER"]
[Tiebreak "Number of wins+Number of black wins"]
[SourceTitle "playchess.com"]
[Source "ChessBase"]
[SourceQuality "1"]
[TimeControl "180+2"]

1. d4 {[%emt 0:00:00]} Nf6 {[%emt 0:00:00]} 2. c4 {[%emt 0:00:00]} e6 {[%emt 0:
00:01]} 3. Nc3 {[%emt 0:00:01]} Bb4 {[%emt 0:00:01]} 4. Nf3 {[%emt 0:00:01]}
O-O {[%emt 0:00:03]} 5. Bg5 {[%emt 0:00:01]} h6 {[%emt 0:00:04]} 6. Bh4 {
[%emt 0:00:01]} c5 {[%emt 0:00:01]} 7. e3 {[%emt 0:00:01]} cxd4 {[%emt 0:00:05]
} 8. exd4 {[%emt 0:00:01]} d5 {[%emt 0:00:02]} 9. Rc1 {[%emt 0:00:05]} Nc6 {
[%emt 0:00:15]} 10. cxd5 {[%emt 0:00:18]} exd5 {[%emt 0:00:08]} 11. Be2 {
[%emt 0:00:01]} g5 {[%emt 0:00:06]} 12. Bg3 {[%emt 0:00:02]} Ne4 {[%emt 0:00:
03]} 13. O-O {[%emt 0:00:09]} Bf5 {[%emt 0:00:07]} 14. Ne5 {[%emt 0:00:56]}
Nxc3 {[%emt 0:00:05]} 15. bxc3 {[%emt 0:00:01]} Ba3 {[%emt 0:00:01]} 16. Rb1 {
[%emt 0:00:02]} Bxb1 {[%emt 0:00:03]} 17. Qxb1 {[%emt 0:00:01]} Nxe5 {[%emt 0:
00:06]} 18. Bxe5 {[%emt 0:00:04]} Qb6 {[%emt 0:00:02]} 19. Qf5 {[%emt 0:00:10]}
Qe6 {[%emt 0:00:06]} 20. Qc2 {[%emt 0:00:25]} Bd6 {[%emt 0:00:10]} 21. Bxd6 {
[%emt 0:00:51]} Qxd6 {[%emt 0:00:01]} 22. h4 gxh4 {[%emt 0:00:13]} 23. Bf3 {
[%emt 0:00:07]} b6 {[%emt 0:00:14]} 24. Qf5 {[%emt 0:00:03]} Rad8 25. Qg4+ {
[%emt 0:00:12]} Qg6 {[%emt 0:00:07]} 26. Qxh4 {[%emt 0:00:01]} Qg5 {[%emt 0:00:
09]} 27. Qh3 {[%emt 0:00:03]} Rfe8 {[%emt 0:00:03]} 28. Bh5 {[%emt 0:00:09]}
Re7 {[%emt 0:00:05]} 29. f4 {[%emt 0:00:03]} Qf6 {[%emt 0:00:09]} 30. Rf3 {
[%emt 0:00:06]} Kf8 {[%emt 0:00:06]} 31. Kh2 Rde8 {[%emt 0:00:10]} 32. Bg4 {
[%emt 0:00:03]} Re4 {[%emt 0:00:06]} 33. Bf5 {[%emt 0:00:02]} Re2 {[%emt 0:00:
03]} 34. Rg3 Rxa2 {[%emt 0:00:10]} 35. Qg4 {[%emt 0:00:07]} Ke7 {[%emt 0:00:12]
} 36. Bb1 {[%emt 0:00:01]} Rb2 37. Bd3 Kd8 {[%emt 0:00:15]} 38. Ba6 {[%emt 0:
00:04]} Qe6 {[%emt 0:00:04]} 39. Qh4+ {[%emt 0:00:01]} Kc7 {[%emt 0:00:02]} 40.
Rf3 {[%emt 0:00:02]} Rg8 {[%emt 0:00:02]} 41. Rg3 {[%emt 0:00:02]} Rxg3 {
[%emt 0:00:01]} 42. Qxg3 {[%emt 0:00:01]} Qd6 {[%emt 0:00:01]} 43. Qg4 {
[%emt 0:00:02]} b5 44. Bc8 {[%emt 0:00:02]} h5 {[%emt 0:00:07]} 45. Qf5 {
[%emt 0:00:03]} Qg6 {[%emt 0:00:02]} 46. Qh3 {[%emt 0:00:02]} Qxg2+ {[%emt 0:
00:04]} 0-1

[Event "GER-ch Blitz 2019"]
[Site "Magdeburg"]
[Date "2019.05.25"]
[Round "16.2"]
[White "Braeuning, Rudolf Wilhelm"]
[Black "Feuerstack, Aljoscha"]
[Result "0-1"]
[ECO "B13"]
[WhiteElo "2285"]
[BlackElo "2441"]
[Annotator "NA"]
[PlyCount "81"]
[EventDate "2019.05.25"]
[EventType "tourn"]
[EventCountry "GER"]
[Tiebreak "Number of wins+Number of black wins"]
[SourceTitle "playchess.com"]
[Source "ChessBase"]
[SourceQuality "1"]
[TimeControl "180+2"]

1. e4 {[%emt 0:00:00]} c6 {[%emt 0:00:00]} 2. d4 {[%emt 0:00:00]} d5 {[%emt 0:
00:00]} 3. exd5 {[%emt 0:00:01]} cxd5 {[%emt 0:00:00]} 4. c4 {[%emt 0:00:01]}
Nf6 {[%emt 0:00:01]} 5. Nc3 {[%emt 0:00:01]} Nc6 {[%emt 0:00:01]} 6. Bg5 {
[%emt 0:00:01]} e6 {[%emt 0:00:01]} 7. c5 {[%emt 0:00:02]} Be7 {[%emt 0:00:19]}
8. Bb5 {[%emt 0:00:03]} O-O {[%emt 0:00:03]} 9. Nf3 {[%emt 0:00:01]} Ne4 {
[%emt 0:00:02]} 10. Bxe7 {[%emt 0:00:03]} Nxe7 {[%emt 0:00:01]} 11. Rc1 {
[%emt 0:00:23]} b6 {[%emt 0:00:34]} 12. c6 {[%emt 0:00:24]} a6 {[%emt 0:00:03]}
13. Bd3 {[%emt 0:00:06]} Nd6 {[%emt 0:00:29]} 14. O-O {[%emt 0:00:23]} Nxc6 {
[%emt 0:00:10]} 15. Nxd5 {[%emt 0:00:18]} Bb7 {[%emt 0:00:35]} 16. Ne3 {
[%emt 0:00:51]} Nb5 {[%emt 0:00:17]} 17. d5 {[%emt 0:00:15]} Nb4 {[%emt 0:00:
07]} 18. Bxb5 {[%emt 0:00:12]} axb5 {[%emt 0:00:02]} 19. dxe6 {[%emt 0:00:03]}
Qxd1 {[%emt 0:00:03]} 20. Rcxd1 {[%emt 0:00:11]} Bxf3 {[%emt 0:00:05]} 21. gxf3
{[%emt 0:00:03]} fxe6 {[%emt 0:00:11]} 22. a3 {[%emt 0:00:02]} Na6 {[%emt 0:00:
10]} 23. Rd6 {[%emt 0:00:03]} b4 {[%emt 0:00:03]} 24. Rxb6 {[%emt 0:00:08]}
bxa3 {[%emt 0:00:01]} 25. bxa3 {[%emt 0:00:01]} Nc5 {[%emt 0:00:07]} 26. Rc1 {
[%emt 0:00:01]} Nd3 {[%emt 0:00:01]} 27. Rc7 {[%emt 0:00:07]} Rf7 {[%emt 0:00:
17]} 28. Rxf7 {[%emt 0:00:02]} Kxf7 {[%emt 0:00:00]} 29. Nc4 {[%emt 0:00:02]}
Ra4 {[%emt 0:00:04]} 30. Rc6 {[%emt 0:00:04]} Kf6 {[%emt 0:00:05]} 31. Kf1 {
[%emt 0:00:03]} Nf4 {[%emt 0:00:02]} 32. Ke1 {[%emt 0:00:02]} Ke7 {[%emt 0:00:
03]} 33. Rc7+ {[%emt 0:00:02]} Kd8 {[%emt 0:00:01]} 34. Rc6 {[%emt 0:00:06]}
Kd7 {[%emt 0:00:01]} 35. Rd6+ {[%emt 0:00:01]} Ke7 {[%emt 0:00:01]} 36. Rd4 {
[%emt 0:00:02]} e5 {[%emt 0:00:02]} 37. Re4 {[%emt 0:00:01]} Kf6 {[%emt 0:00:
01]} 38. Kd2 {[%emt 0:00:02]} Ne6 {[%emt 0:00:02]} 39. Kc3 {[%emt 0:00:02]} Nd4
{[%emt 0:00:04]} 40. Rxd4 exd4+ 41. Kxd4 0-1

[Event "GER-ch Blitz 2019"]
[Site "Magdeburg"]
[Date "2019.05.25"]
[Round "16.4"]
[White "Barzen, Pascal"]
[Black "Koch, Thomas"]
[Result "1/2-1/2"]
[ECO "B25"]
[WhiteElo "2292"]
[BlackElo "2474"]
[Annotator "ChessBase"]
[PlyCount "72"]
[EventDate "2019.05.25"]
[EventType "tourn"]
[EventCountry "GER"]
[Tiebreak "Number of wins+Number of black wins"]
[SourceTitle "playchess.com"]
[Source "ChessBase"]
[SourceQuality "1"]
[TimeControl "180+2"]

1. e4 {[%emt 0:00:00]} c5 {[%emt 0:00:00]} 2. Nc3 {[%emt 0:00:00]} Nc6 {
[%emt 0:00:00]} 3. g3 {[%emt 0:00:00]} g6 {[%emt 0:00:01]} 4. Bg2 {[%emt 0:00:
01]} Bg7 {[%emt 0:00:01]} 5. d3 {[%emt 0:00:00]} d6 {[%emt 0:00:01]} 6. f4 {
[%emt 0:00:01]} Nf6 {[%emt 0:00:03]} 7. Nf3 {[%emt 0:00:01]} O-O {[%emt 0:00:
02]} 8. O-O {[%emt 0:00:01]} Rb8 {[%emt 0:00:01]} 9. h3 {[%emt 0:00:02]} b5 {
[%emt 0:00:03]} 10. Be3 {[%emt 0:00:01]} b4 {[%emt 0:00:04]} 11. Ne2 {[%emt 0:
00:05]} Nd7 {[%emt 0:00:06]} 12. Rb1 {[%emt 0:00:10]} Qa5 {[%emt 0:00:08]} 13.
d4 {[%emt 0:00:03]} cxd4 {[%emt 0:00:07]} 14. Nexd4 {[%emt 0:00:02]} Bb7 {
[%emt 0:00:09]} 15. Nxc6 {[%emt 0:00:03]} Bxc6 {[%emt 0:00:02]} 16. Nd4 {
[%emt 0:00:01]} Bb7 {[%emt 0:00:06]} 17. Nb3 {[%emt 0:00:15]} Qa4 {[%emt 0:00:
02]} 18. Bd4 {[%emt 0:00:01]} e5 {[%emt 0:00:12]} 19. Be3 {[%emt 0:00:02]} Qa6
{[%emt 0:00:15]} 20. f5 {[%emt 0:00:12]} Nf6 {[%emt 0:00:06]} 21. Nd2 {[%emt 0:
00:38]} d5 {[%emt 0:00:05]} 22. fxg6 {[%emt 0:00:20]} hxg6 {[%emt 0:00:05]} 23.
Bg5 {[%emt 0:00:04]} Nxe4 {[%emt 0:00:03]} 24. Nxe4 {[%emt 0:00:01]} dxe4 {
[%emt 0:00:01]} 25. Kh2 {[%emt 0:00:13]} f6 {[%emt 0:00:05]} 26. Be3 {[%emt 0:
00:05]} Rfd8 {[%emt 0:00:01]} 27. Qg4 {[%emt 0:00:01]} f5 {[%emt 0:00:04]} 28.
Qh4 {[%emt 0:00:01]} Rbc8 {[%emt 0:00:10]} 29. Rfd1 {[%emt 0:00:03]} Rxd1 30.
Rxd1 {[%emt 0:00:01]} Qe2 {[%emt 0:00:31]} 31. Rd7 {[%emt 0:00:19]} Qxe3 {
[%emt 0:00:14]} 32. Qe7 {[%emt 0:00:11]} Qh6 {[%emt 0:00:03]} 33. Rxb7 {
[%emt 0:00:09]} Rxc2 {[%emt 0:00:02]} 34. Qf7+ {[%emt 0:00:38]} Kh7 {[%emt 0:
00:02]} 35. Kg1 {[%emt 0:00:11]} Rxb2 36. Rxa7 Qe3+ {[%emt 0:01:00]} 1/2-1/2

[Event "GER-ch Blitz 2019"]
[Site "Magdeburg"]
[Date "2019.05.25"]
[Round "16.5"]
[White "Baskin, Robert"]
[Black "Hebbinghaus, Holger"]
[Result "1-0"]
[ECO "D00"]
[WhiteElo "2398"]
[BlackElo "2310"]
[Annotator "NA"]
[PlyCount "81"]
[EventDate "2019.05.25"]
[EventType "tourn"]
[EventCountry "GER"]
[Tiebreak "Number of wins+Number of black wins"]
[SourceTitle "playchess.com"]
[Source "ChessBase"]
[SourceQuality "1"]
[TimeControl "180+2"]

1. d4 {[%emt 0:00:00]} d5 {[%emt 0:00:00]} 2. Bf4 {[%emt 0:00:00]} Nf6 {
[%emt 0:00:01]} 3. e3 {[%emt 0:00:00]} e6 {[%emt 0:00:01]} 4. Nd2 {[%emt 0:00:
03]} Bd6 {[%emt 0:00:01]} 5. Bg3 {[%emt 0:00:01]} b6 {[%emt 0:00:06]} 6. c3 {
[%emt 0:00:01]} O-O {[%emt 0:00:03]} 7. Ngf3 {[%emt 0:00:01]} c5 {[%emt 0:00:
02]} 8. Bd3 {[%emt 0:00:03]} Ba6 {[%emt 0:00:03]} 9. Bxa6 {[%emt 0:00:02]} Nxa6
{[%emt 0:00:01]} 10. O-O {[%emt 0:00:02]} Bxg3 {[%emt 0:00:13]} 11. hxg3 {
[%emt 0:00:01]} Nc7 {[%emt 0:00:06]} 12. a4 {[%emt 0:00:03]} Qd6 {[%emt 0:00:
12]} 13. a5 {[%emt 0:00:02]} b5 {[%emt 0:00:04]} 14. Qe2 {[%emt 0:00:21]} a6 {
[%emt 0:00:09]} 15. e4 {[%emt 0:00:01]} dxe4 {[%emt 0:00:13]} 16. Nxe4 {
[%emt 0:00:02]} Nxe4 {[%emt 0:00:13]} 17. Qxe4 {[%emt 0:00:01]} Nd5 {[%emt 0:
00:08]} 18. Rfd1 {[%emt 0:00:13]} cxd4 {[%emt 0:00:41]} 19. Rxd4 {[%emt 0:00:
02]} h6 {[%emt 0:00:08]} 20. Rad1 {[%emt 0:00:03]} Qc7 {[%emt 0:00:09]} 21. g4
{[%emt 0:00:02]} Nf6 {[%emt 0:00:11]} 22. Qe5 {[%emt 0:00:02]} Qxe5 23. Nxe5 {
[%emt 0:00:03]} Nd5 {[%emt 0:00:16]} 24. Nd7 {[%emt 0:00:02]} Rfe8 {[%emt 0:00:
09]} 25. Nb6 {[%emt 0:00:08]} Nxb6 {[%emt 0:00:02]} 26. axb6 {[%emt 0:00:01]}
Rab8 {[%emt 0:00:05]} 27. Rd6 {[%emt 0:00:01]} a5 {[%emt 0:00:05]} 28. Rc6 {
[%emt 0:00:09]} Rb7 {[%emt 0:00:05]} 29. b3 {[%emt 0:00:29]} Reb8 {[%emt 0:00:
03]} 30. Rdd6 {[%emt 0:00:02]} a4 {[%emt 0:00:03]} 31. bxa4 {[%emt 0:00:08]}
bxa4 {[%emt 0:00:01]} 32. c4 {[%emt 0:00:20]} a3 33. c5 {[%emt 0:00:01]} a2 {
[%emt 0:00:09]} 34. Rd1 {[%emt 0:00:01]} Rd7 {[%emt 0:00:03]} 35. Ra1 {[%emt 0:
00:04]} Ra8 {[%emt 0:00:02]} 36. Rd6 {[%emt 0:00:14]} Rxd6 {[%emt 0:00:11]} 37.
cxd6 {[%emt 0:00:02]} f5 {[%emt 0:00:10]} 38. d7 {[%emt 0:00:14]} Rd8 {[%emt 0:
00:02]} 39. b7 {[%emt 0:00:03]} Kf7 {[%emt 0:00:02]} 40. Rxa2 {[%emt 0:00:01]}
Ke7 {[%emt 0:00:01]} 41. Ra8 {[%emt 0:00:01]} 1-0

[Event "GER-ch Blitz 2019"]
[Site "Magdeburg"]
[Date "2019.05.25"]
[Round "16.6"]
[White "Krause, Benedict"]
[Black "Buhmann, Rainer"]
[Result "1/2-1/2"]
[ECO "B15"]
[WhiteElo "2434"]
[BlackElo "2573"]
[Annotator "ChessBase"]
[PlyCount "78"]
[EventDate "2019.05.25"]
[EventType "tourn"]
[EventCountry "GER"]
[Tiebreak "Number of wins+Number of black wins"]
[SourceTitle "playchess.com"]
[Source "ChessBase"]
[SourceQuality "1"]
[TimeControl "180+2"]

1. e4 {[%emt 0:00:00]} c6 {[%emt 0:00:00]} 2. d4 {[%emt 0:00:01]} d5 {[%emt 0:
00:00]} 3. Nd2 {[%emt 0:00:01]} dxe4 {[%emt 0:00:00]} 4. Nxe4 {[%emt 0:00:01]}
Nf6 {[%emt 0:00:02]} 5. Nxf6+ {[%emt 0:00:01]} exf6 {[%emt 0:00:01]} 6. c3 {
[%emt 0:00:01]} Bd6 {[%emt 0:00:02]} 7. Bd3 {[%emt 0:00:02]} O-O {[%emt 0:00:
02]} 8. Qc2 {[%emt 0:00:01]} Re8+ {[%emt 0:00:01]} 9. Ne2 {[%emt 0:00:01]} h5 {
[%emt 0:00:01]} 10. O-O {[%emt 0:00:04]} h4 {[%emt 0:00:02]} 11. Bf4 {[%emt 0:
00:07]} Na6 {[%emt 0:00:01]} 12. Bxd6 {[%emt 0:00:06]} Qxd6 {[%emt 0:00:02]}
13. Rae1 {[%emt 0:00:06]} Nc7 {[%emt 0:00:02]} 14. Qd2 {[%emt 0:00:03]} Be6 {
[%emt 0:00:04]} 15. a3 {[%emt 0:00:11]} a5 {[%emt 0:00:08]} 16. Qf4 {[%emt 0:
00:08]} Qxf4 {[%emt 0:00:02]} 17. Nxf4 {[%emt 0:00:01]} Kf8 {[%emt 0:00:22]}
18. f3 {[%emt 0:00:08]} b5 {[%emt 0:00:45]} 19. Nxe6+ {[%emt 0:00:11]} Rxe6 {
[%emt 0:00:06]} 20. Bf5 {[%emt 0:00:14]} Rxe1 {[%emt 0:00:17]} 21. Rxe1 {
[%emt 0:00:00]} Nd5 {[%emt 0:00:13]} 22. Be4 {[%emt 0:00:13]} Rb8 {[%emt 0:00:
14]} 23. Bxd5 {[%emt 0:00:17]} cxd5 {[%emt 0:00:02]} 24. Kf2 {[%emt 0:00:31]}
g6 {[%emt 0:00:08]} 25. g3 {[%emt 0:00:06]} hxg3+ {[%emt 0:00:05]} 26. hxg3 {
[%emt 0:00:00]} Rc8 {[%emt 0:00:07]} 27. g4 {[%emt 0:00:09]} Rc4 {[%emt 0:00:
05]} 28. Re3 {[%emt 0:00:06]} Rc8 {[%emt 0:00:29]} 29. Ke2 {[%emt 0:00:04]} Kg7
{[%emt 0:00:11]} 30. Kd3 {[%emt 0:00:02]} Rh8 {[%emt 0:00:02]} 31. Re7 {
[%emt 0:00:17]} Rh3 {[%emt 0:00:04]} 32. Ke3 {[%emt 0:00:02]} Rh2 {[%emt 0:00:
01]} 33. b4 {[%emt 0:00:00]} Ra2 {[%emt 0:00:05]} 34. bxa5 {[%emt 0:00:19]}
Rxa3 35. Kd2 Rxa5 {[%emt 0:00:04]} 36. Rd7 {[%emt 0:00:01]} Ra2+ {[%emt 0:00:
02]} 37. Kd3 {[%emt 0:00:01]} Ra3 {[%emt 0:00:07]} 38. Kd2 {[%emt 0:00:02]}
Ra2+ {[%emt 0:00:04]} 39. Kd3 {[%emt 0:00:01]} Ra3 {[%emt 0:00:01] Ke4} 1/2-1/2

[Event "GER-ch Blitz 2019"]
[Site "Magdeburg"]
[Date "2019.05.25"]
[Round "16.7"]
[White "Braeuer, Franz"]
[Black "Schneider, Ilja"]
[Result "1-0"]
[ECO "B07"]
[WhiteElo "2445"]
[BlackElo "2494"]
[Annotator "ChessBase"]
[PlyCount "59"]
[EventDate "2019.05.25"]
[EventType "tourn"]
[EventCountry "GER"]
[Tiebreak "Number of wins+Number of black wins"]
[SourceTitle "playchess.com"]
[Source "ChessBase"]
[SourceQuality "1"]
[TimeControl "180+2"]

1. e4 {[%emt 0:00:00]} d6 {[%emt 0:00:00]} 2. d4 {[%emt 0:00:01]} Nf6 {[%emt 0:
00:00]} 3. Nc3 {[%emt 0:00:01]} e5 {[%emt 0:00:01]} 4. Nf3 {[%emt 0:00:01]}
exd4 {[%emt 0:00:01]} 5. Nxd4 {[%emt 0:00:01]} Be7 {[%emt 0:00:00]} 6. g3 {
[%emt 0:00:02]} Nc6 {[%emt 0:00:02]} 7. Bg2 {[%emt 0:00:07]} O-O {[%emt 0:00:
03]} 8. O-O {[%emt 0:00:03]} Bg4 {[%emt 0:00:01]} 9. Nde2 {[%emt 0:00:04]} Qd7
{[%emt 0:00:11]} 10. b3 {[%emt 0:00:09]} Rfe8 {[%emt 0:00:03]} 11. Bb2 {
[%emt 0:00:00]} Bh3 {[%emt 0:00:01]} 12. Bxh3 {[%emt 0:00:19]} Qxh3 {[%emt 0:
00:02]} 13. Nf4 {[%emt 0:00:01]} Qd7 {[%emt 0:00:03]} 14. Kg2 {[%emt 0:00:11]}
Bf8 {[%emt 0:00:03]} 15. Re1 {[%emt 0:00:00]} Rad8 {[%emt 0:00:05]} 16. Qd2 {
[%emt 0:00:09]} Ne5 {[%emt 0:00:10]} 17. h3 {[%emt 0:00:04]} c6 {[%emt 0:00:08]
} 18. Rad1 {[%emt 0:00:01]} Ng6 {[%emt 0:00:08]} 19. Nxg6 {[%emt 0:00:14]} hxg6
{[%emt 0:00:01]} 20. a4 {[%emt 0:00:07]} Qc7 {[%emt 0:00:06]} 21. Qf4 {[%emt 0:
00:08]} a6 {[%emt 0:00:10]} 22. Nb1 {[%emt 0:00:30]} Re6 {[%emt 0:00:03]} 23.
Re3 {[%emt 0:00:09]} Rde8 {[%emt 0:00:12]} 24. Nd2 {[%emt 0:00:05]} Qe7 {
[%emt 0:00:09]} 25. Rde1 {[%emt 0:00:15]} d5 {[%emt 0:00:19]} 26. e5 {[%emt 0:
00:38]} Nd7 {[%emt 0:00:16]} 27. Nf3 {[%emt 0:00:02]} Qb4 {[%emt 0:00:17]} 28.
c4 {[%emt 0:00:25]} dxc4 {[%emt 0:00:12]} 29. Ng5 {[%emt 0:00:00]} R6e7 {
[%emt 0:00:09]} 30. Qh4 {[%emt 0:00:01]} 1-0

[Event "GER-ch Blitz 2019"]
[Site "Magdeburg"]
[Date "2019.05.25"]
[Round "16.8"]
[White "Carow, Johannes"]
[Black "Ehmann, Thilo"]
[Result "1/2-1/2"]
[ECO "A04"]
[WhiteElo "2445"]
[BlackElo "2291"]
[Annotator "NA"]
[PlyCount "39"]
[EventDate "2019.05.25"]
[EventType "tourn"]
[EventCountry "GER"]
[Tiebreak "Number of wins+Number of black wins"]
[SourceTitle "playchess.com"]
[Source "ChessBase"]
[SourceQuality "1"]
[TimeControl "180+2"]

1. Nf3 {[%emt 0:00:00]} c5 {[%emt 0:00:00]} 2. e3 {[%emt 0:00:02]} g6 {[%emt 0:
00:05]} 3. d4 {[%emt 0:00:03]} Bg7 {[%emt 0:00:00]} 4. Be2 {[%emt 0:00:11]} Nf6
{[%emt 0:00:08]} 5. d5 {[%emt 0:00:03]} d6 {[%emt 0:00:11]} 6. O-O {[%emt 0:00:
07]} O-O {[%emt 0:00:01]} 7. Nc3 {[%emt 0:00:06]} Bg4 {[%emt 0:00:17]} 8. a4 {
[%emt 0:00:14]} Nbd7 {[%emt 0:00:12]} 9. h3 {[%emt 0:00:03]} Bxf3 {[%emt 0:00:
01]} 10. Bxf3 {[%emt 0:00:01]} Ne8 {[%emt 0:00:03]} 11. e4 {[%emt 0:00:07]} Nc7
{[%emt 0:00:03]} 12. Re1 {[%emt 0:00:06]} a6 {[%emt 0:00:08]} 13. Be2 {[%emt 0:
00:10]} b6 {[%emt 0:00:16]} 14. Bg5 {[%emt 0:00:08]} Rb8 {[%emt 0:00:07]} 15.
Qd2 {[%emt 0:00:02]} Re8 {[%emt 0:00:00]} 16. Rab1 {[%emt 0:00:22]} b5 {
[%emt 0:00:24]} 17. axb5 {[%emt 0:00:02]} Nxb5 {[%emt 0:00:02]} 18. Bxb5 {
[%emt 0:00:19]} axb5 {[%emt 0:00:01]} 19. b4 {[%emt 0:00:01]} Qc7 {[%emt 0:00:
17]} 20. Ne2 {[%emt 0:00:40]} 1/2-1/2

[Event "GER-ch Blitz 2019"]
[Site "Magdeburg"]
[Date "2019.05.25"]
[Round "16.9"]
[White "Kopylov, Michael"]
[Black "Schulz, Karsten"]
[Result "1-0"]
[ECO "D79"]
[WhiteElo "2413"]
[BlackElo "2227"]
[Annotator "NA"]
[PlyCount "85"]
[EventDate "2019.05.25"]
[EventType "tourn"]
[EventCountry "GER"]
[Tiebreak "Number of wins+Number of black wins"]
[SourceTitle "playchess.com"]
[Source "ChessBase"]
[SourceQuality "1"]
[TimeControl "180+2"]

1. d4 {[%emt 0:00:00]} Nf6 {[%emt 0:00:00]} 2. c4 {[%emt 0:00:00]} g6 {[%emt 0:
00:00]} 3. g3 {[%emt 0:00:00]} Bg7 {[%emt 0:00:01]} 4. Bg2 {[%emt 0:00:01]} O-O
{[%emt 0:00:02]} 5. Nf3 {[%emt 0:00:00]} c6 {[%emt 0:00:01]} 6. O-O {[%emt 0:
00:10]} d5 {[%emt 0:00:02]} 7. cxd5 {[%emt 0:00:01]} cxd5 {[%emt 0:00:00]} 8.
Ne5 {[%emt 0:00:01]} Nc6 {[%emt 0:00:01]} 9. Nc3 {[%emt 0:00:01]} e6 {[%emt 0:
00:14]} 10. Nxc6 {[%emt 0:00:20]} bxc6 {[%emt 0:00:01]} 11. Na4 {[%emt 0:00:01]
} Nd7 {[%emt 0:00:05]} 12. Bf4 {[%emt 0:00:10]} Ba6 {[%emt 0:00:14]} 13. Rc1 {
[%emt 0:00:03]} Rc8 {[%emt 0:00:13]} 14. b3 {[%emt 0:00:06]} Re8 {[%emt 0:00:
16]} 15. Qd2 {[%emt 0:00:03]} e5 {[%emt 0:00:26]} 16. dxe5 {[%emt 0:00:02]}
Bxe5 {[%emt 0:00:01]} 17. Bxe5 {[%emt 0:00:08]} Rxe5 {[%emt 0:00:02]} 18. Rfe1
{[%emt 0:00:02]} c5 {[%emt 0:00:14]} 19. f4 {[%emt 0:00:19]} Re8 {[%emt 0:00:
14]} 20. Qxd5 {[%emt 0:00:14]} Qe7 {[%emt 0:00:13]} 21. e4 {[%emt 0:00:18]} Nb6
{[%emt 0:00:03]} 22. Nxb6 {[%emt 0:00:10]} axb6 {[%emt 0:00:01]} 23. Rcd1 {
[%emt 0:00:07]} Red8 {[%emt 0:00:16]} 24. Qe5 {[%emt 0:00:11]} Qxe5 {[%emt 0:
00:07]} 25. fxe5 {[%emt 0:00:01]} Kf8 {[%emt 0:00:09]} 26. Rd6 {[%emt 0:00:08]}
Rb8 {[%emt 0:00:10]} 27. Red1 {[%emt 0:00:04]} Ke7 {[%emt 0:00:01]} 28. Bh3 {
[%emt 0:00:06]} Bb5 {[%emt 0:00:05]} 29. Kf2 {[%emt 0:00:11]} Be8 {[%emt 0:00:
09]} 30. Ke3 {[%emt 0:00:02]} b5 {[%emt 0:00:02]} 31. a3 {[%emt 0:00:16]} Ra8 {
[%emt 0:00:03]} 32. Rxd8 {[%emt 0:00:06]} Rxd8 {[%emt 0:00:02]} 33. Rxd8 Kxd8 {
[%emt 0:00:01]} 34. b4 {[%emt 0:00:06]} cxb4 {[%emt 0:00:05]} 35. axb4 {
[%emt 0:00:00]} Kc7 {[%emt 0:00:01]} 36. Kd4 {[%emt 0:00:02]} Kb6 {[%emt 0:00:
03]} 37. e6 {[%emt 0:00:02]} f6 {[%emt 0:00:05]} 38. Kd5 {[%emt 0:00:05]} Kc7 {
[%emt 0:00:04]} 39. Kc5 {[%emt 0:00:05]} Bc6 {[%emt 0:00:07]} 40. Bf1 {[%emt 0:
00:07]} Be8 {[%emt 0:00:12]} 41. Bxb5 {[%emt 0:00:08]} Bxb5 {[%emt 0:00:04]}
42. Kxb5 Kd6 {[%emt 0:00:00]} 43. Ka6 {[%emt 0:00:03]} 1-0